[Event "Titled Tuesday Blitz July 26 Early 2022"]
[White "Andreikin, Dmitry"]
[Black "Hamley, Ryan"]
[WhiteFideId "4158814"]
[BlackFideId "30959497"]
[WhiteElo "2736"]
[BlackElo "2514"]
[Result "1-0"]
[Round "01"]
[TimeControl "180+1"]
[Date "2022.07.26"]
[WhiteClock "0:02:53"]
[BlackClock "0:02:17"]

1. d4 {[%clk 0:02:59]}  Nf6 {[%clk 0:02:59]} 2. c4 {[%clk 0:02:58]}  e6 {[%clk 0:02:59]} 3. Nf3 {[%clk 0:02:58]}  d5 {[%clk 0:03:00]} 4. g3 {[%clk 0:02:59]}  Be7 {[%clk 0:03:00]} 5. Bg2 {[%clk 0:02:59]}  O-O {[%clk 0:03:01]} 6. O-O {[%clk 0:03:00]}  dxc4 {[%clk 0:03:01]} 7. Qc2 {[%clk 0:03:00]}  a6 {[%clk 0:03:01]} 8. a4 {[%clk 0:03:00]}  Bd7 {[%clk 0:03:02]} 9. Qxc4 {[%clk 0:03:00]}  Bc6 {[%clk 0:03:02]} 10. Bf4 {[%clk 0:03:00]}  Nbd7 {[%clk 0:02:55]} 11. Rd1 {[%clk 0:02:59]}  a5 {[%clk 0:02:52]} 12. Qc1 {[%clk 0:02:57]}  Nb6 {[%clk 0:02:47]} 13. Nc3 {[%clk 0:02:57]}  Ne4 {[%clk 0:02:45]} 14. Nxe4 {[%clk 0:02:55]}  Bxe4 {[%clk 0:02:45]} 15. Bxc7 {[%clk 0:02:55]}  Qd5 {[%clk 0:02:36]} 16. Bxb6 {[%clk 0:02:55]}  Rac8 {[%clk 0:02:34]} 17. Bc5 {[%clk 0:02:54]}  b6 {[%clk 0:02:33]} 18. Bxe7 {[%clk 0:02:54]}  Rxc1 {[%clk 0:02:32]} 19. Raxc1 {[%clk 0:02:54]}  Re8 {[%clk 0:02:29]} 20. Ba3 {[%clk 0:02:54]}  Qb3 {[%clk 0:02:24]} 21. Nd2 {[%clk 0:02:54]}  Qxa4 {[%clk 0:02:19]} 22. Nxe4 {[%clk 0:02:54]}  b5 {[%clk 0:02:17]} 23. Nc5 {[%clk 0:02:53]} 1-0


[Site "https://www.chess.com"]

[Event "Titled Tuesday Blitz July 26 Early 2022"]
[White "Avazkhonov, Alikhon"]
[Black "Rohith Krishna S"]
[WhiteFideId "14208504"]
[BlackFideId "46617051"]
[WhiteElo "1739"]
[BlackElo "2117"]
[Result "0-1"]
[Round "01"]
[TimeControl "180+1"]
[Date "2022.07.27"]
[WhiteClock "0:00:02"]
[BlackClock "0:01:17"]

1. e4 {[%clk 0:03:00]}  e6 {[%clk 0:02:56]} 2. d4 {[%clk 0:02:58]}  d5 {[%clk 0:02:54]} 3. Nc3 {[%clk 0:02:56]}  Nf6 {[%clk 0:02:52]} 4. e5 {[%clk 0:02:56]}  Nfd7 {[%clk 0:02:50]} 5. f4 {[%clk 0:02:56]}  c5 {[%clk 0:02:44]} 6. Nf3 {[%clk 0:02:57]}  Nc6 {[%clk 0:02:44]} 7. Be3 {[%clk 0:02:56]}  a6 {[%clk 0:02:41]} 8. Qd2 {[%clk 0:02:53]}  b5 {[%clk 0:02:41]} 9. Nd1 {[%clk 0:02:44]}  Bb7 {[%clk 0:02:39]} 10. c3 {[%clk 0:02:43]}  Be7 {[%clk 0:02:38]} 11. Bd3 {[%clk 0:02:42]}  Qb6 {[%clk 0:02:38]} 12. O-O {[%clk 0:02:28]}  g6 {[%clk 0:02:33]} 13. Nf2 {[%clk 0:02:26]}  O-O-O {[%clk 0:02:31]} 14. Rab1 {[%clk 0:01:51]}  c4 {[%clk 0:02:16]} 15. Bc2 {[%clk 0:01:50]}  Kc7 {[%clk 0:02:14]} 16. b4 {[%clk 0:01:50]}  Ra8 {[%clk 0:02:13]} 17. a4 {[%clk 0:01:49]}  Qa7 {[%clk 0:02:14]} 18. Ra1 {[%clk 0:01:25]}  Qb8 {[%clk 0:02:13]} 19. Rfb1 {[%clk 0:01:19]}  Qg8 {[%clk 0:02:12]} 20. g3 {[%clk 0:00:46]}  Qg7 {[%clk 0:02:10]} 21. Kg2 {[%clk 0:00:46]}  h6 {[%clk 0:01:59]} 22. h3 {[%clk 0:00:41]}  Rag8 {[%clk 0:01:58]} 23. g4 {[%clk 0:00:36]}  f6 {[%clk 0:01:56]} 24. exf6 {[%clk 0:00:32]}  Nxf6 {[%clk 0:01:57]} 25. Ne5 {[%clk 0:00:32]}  g5 {[%clk 0:01:56]} 26. f5 {[%clk 0:00:26]}  h5 {[%clk 0:01:53]} 27. Ng6 {[%clk 0:00:23]}  hxg4 {[%clk 0:01:53]} 28. hxg4 {[%clk 0:00:23]}  Bd6 {[%clk 0:01:52]} 29. Nxh8 {[%clk 0:00:22]}  Rxh8 {[%clk 0:01:52]} 30. Rh1 {[%clk 0:00:23]}  Re8 {[%clk 0:01:50]} 31. Bxg5 {[%clk 0:00:21]}  e5 {[%clk 0:01:47]} 32. Bxf6 {[%clk 0:00:20]}  Qxf6 {[%clk 0:01:47]} 33. Rh6 {[%clk 0:00:16]}  Qf8 {[%clk 0:01:40]} 34. Rxd6 {[%clk 0:00:06]}  Qxd6 {[%clk 0:01:39]} 35. Re1 {[%clk 0:00:06]}  Rg8 {[%clk 0:01:34]} 36. dxe5 {[%clk 0:00:06]}  Nxe5 {[%clk 0:01:35]} 37. Qf4 {[%clk 0:00:06]}  Nxg4 {[%clk 0:01:33]} 38. Qxd6+ {[%clk 0:00:05]}  Kxd6 {[%clk 0:01:33]} 39. Nxg4 {[%clk 0:00:05]}  Rxg4+ {[%clk 0:01:33]} 40. Kf3 {[%clk 0:00:06]}  Rh4 {[%clk 0:01:32]} 41. Re6+ {[%clk 0:00:07]}  Kd7 {[%clk 0:01:32]} 42. Rb6 {[%clk 0:00:07]}  Kc7 {[%clk 0:01:31]} 43. Rg6 {[%clk 0:00:07]}  d4+ {[%clk 0:01:31]} 44. Kg3 {[%clk 0:00:07]}  Rh1 {[%clk 0:01:28]} 45. cxd4 {[%clk 0:00:07]}  Rc1 {[%clk 0:01:28]} 46. f6 {[%clk 0:00:04]}  Rxc2 {[%clk 0:01:25]} 47. Rg7+ {[%clk 0:00:03]}  Kb6 {[%clk 0:01:15]} 48. a5+ {[%clk 0:00:03]}  Ka7 {[%clk 0:01:16]} 49. f7 {[%clk 0:00:04]}  Rc3+ {[%clk 0:01:16]} 50. Kg4 {[%clk 0:00:04]}  Rf3 {[%clk 0:01:17]} 51. Kg5 {[%clk 0:00:02]}  c3 {[%clk 0:01:17]} 52. Kg6 {[%clk 0:00:01]}  c2 {[%clk 0:01:17]} 53. f8=Q {[%clk 0:00:01]}  Rxf8 {[%clk 0:01:17]} 54. Rc7 {[%clk 0:00:02]}  Rc8 {[%clk 0:01:17]} 0-1


[Site "https://www.chess.com"]

[Event "Titled Tuesday Blitz July 26 Early 2022"]
[White "Barp, Alberto"]
[Black "Large, Peter G"]
[WhiteFideId "872555"]
[BlackFideId "400866"]
[WhiteElo "2229"]
[BlackElo "2064"]
[Result "0-1"]
[Round "01"]
[TimeControl "180+1"]
[Date "2022.07.27"]
[WhiteClock "0:00:29"]
[BlackClock "0:00:11"]

1. d4 {[%clk 0:02:34]}  e6 {[%clk 0:02:59]} 2. Nf3 {[%clk 0:02:31]}  Nf6 {[%clk 0:02:59]} 3. Bg5 {[%clk 0:02:29]}  d5 {[%clk 0:02:58]} 4. Nbd2 {[%clk 0:02:26]}  Nbd7 {[%clk 0:02:58]} 5. e3 {[%clk 0:02:22]}  c5 {[%clk 0:02:57]} 6. c3 {[%clk 0:02:21]}  Be7 {[%clk 0:02:57]} 7. Bd3 {[%clk 0:02:20]}  b6 {[%clk 0:02:57]} 8. Qe2 {[%clk 0:02:16]}  a6 {[%clk 0:02:41]} 9. e4 {[%clk 0:02:10]}  dxe4 {[%clk 0:02:41]} 10. Nxe4 {[%clk 0:02:10]}  Bb7 {[%clk 0:02:41]} 11. dxc5 {[%clk 0:02:00]}  Nxc5 {[%clk 0:02:17]} 12. Nxc5 {[%clk 0:01:58]}  Bxc5 {[%clk 0:02:16]} 13. Rd1 {[%clk 0:01:57]}  Qc7 {[%clk 0:02:11]} 14. O-O {[%clk 0:01:54]}  O-O {[%clk 0:02:02]} 15. Bxf6 {[%clk 0:01:53]}  gxf6 {[%clk 0:02:02]} 16. Bb1 {[%clk 0:01:39]}  Rad8 {[%clk 0:01:57]} 17. Nd4 {[%clk 0:01:39]}  Bxd4 {[%clk 0:01:47]} 18. Qg4+ {[%clk 0:01:39]}  Kh8 {[%clk 0:01:47]} 19. Rxd4 {[%clk 0:01:40]}  Rxd4 {[%clk 0:01:45]} 20. Qxd4 {[%clk 0:01:39]}  Kg7 {[%clk 0:01:36]} 21. Qg4+ {[%clk 0:01:37]}  Kh8 {[%clk 0:01:34]} 22. Qh4 {[%clk 0:01:35]}  f5 {[%clk 0:01:34]} 23. Qf6+ {[%clk 0:01:35]}  Kg8 {[%clk 0:01:34]} 24. Rd1 {[%clk 0:01:29]}  Qc6 {[%clk 0:01:19]} 25. Qg5+ {[%clk 0:01:29]}  Kh8 {[%clk 0:01:19]} 26. Rd3 {[%clk 0:01:30]}  f4 {[%clk 0:01:00]} 27. Qf6+ {[%clk 0:01:25]}  Kg8 {[%clk 0:01:00]} 28. Qg5+ {[%clk 0:01:26]}  Kh8 {[%clk 0:01:00]} 29. Rh3 {[%clk 0:01:27]}  f5 {[%clk 0:00:50]} 30. Rd3 {[%clk 0:01:15]}  Qe4 {[%clk 0:00:29]} 31. Rd1 {[%clk 0:01:12]}  Qe2 {[%clk 0:00:29]} 32. Rf1 {[%clk 0:01:10]}  Qe5 {[%clk 0:00:28]} 33. f3 {[%clk 0:01:03]}  Qc5+ {[%clk 0:00:24]} 34. Kh1 {[%clk 0:01:03]}  Qd6 {[%clk 0:00:24]} 35. Qh6 {[%clk 0:00:58]}  Rd8 {[%clk 0:00:20]} 36. Qf6+ {[%clk 0:00:54]}  Kg8 {[%clk 0:00:20]} 37. Bc2 {[%clk 0:00:53]}  Bd5 {[%clk 0:00:20]} 38. h3 {[%clk 0:00:52]}  Rd7 {[%clk 0:00:20]} 39. Rd1 {[%clk 0:00:51]}  Qe7 {[%clk 0:00:18]} 40. Qe5 {[%clk 0:00:49]}  Qd6 {[%clk 0:00:18]} 41. Qxd6 {[%clk 0:00:47]}  Rxd6 {[%clk 0:00:18]} 42. c4 {[%clk 0:00:48]}  Rc6 {[%clk 0:00:18]} 43. cxd5 {[%clk 0:00:47]}  Rxc2 {[%clk 0:00:17]} 44. d6 {[%clk 0:00:44]}  Rc8 {[%clk 0:00:15]} 45. d7 {[%clk 0:00:44]}  Rd8 {[%clk 0:00:16]} 46. Rd6 {[%clk 0:00:45]}  Kf7 {[%clk 0:00:16]} 47. Rxb6 {[%clk 0:00:44]}  Rxd7 {[%clk 0:00:16]} 48. Rxa6 {[%clk 0:00:45]}  Rd2 {[%clk 0:00:14]} 49. Rb6 {[%clk 0:00:45]}  Kf6 {[%clk 0:00:14]} 50. a4 {[%clk 0:00:44]}  Rd1+ {[%clk 0:00:14]} 51. Kh2 {[%clk 0:00:45]}  Ra1 {[%clk 0:00:15]} 52. b3 {[%clk 0:00:43]}  Ke5 {[%clk 0:00:15]} 53. Rb5+ {[%clk 0:00:43]}  Kd4 {[%clk 0:00:16]} 54. a5 {[%clk 0:00:40]}  e5 {[%clk 0:00:16]} 55. b4 {[%clk 0:00:41]}  e4 {[%clk 0:00:16]} 56. Rb8 {[%clk 0:00:39]}  e3 {[%clk 0:00:14]} 57. g4 {[%clk 0:00:29]}  e2 {[%clk 0:00:12]} 58. Re8 {[%clk 0:00:27]}  e1=Q {[%clk 0:00:12]} 59. Rxe1 {[%clk 0:00:27]}  Rxe1 {[%clk 0:00:11]} 60. a6 {[%clk 0:00:28]}  Ra1 {[%clk 0:00:10]} 61. b5 {[%clk 0:00:28]}  Kc5 {[%clk 0:00:11]} 62. gxf5 {[%clk 0:00:28]}  Kxb5 {[%clk 0:00:10]} 63. h4 {[%clk 0:00:29]}  Rd1 {[%clk 0:00:10]} 64. Kh3 {[%clk 0:00:30]}  Rd6 {[%clk 0:00:08]} 65. Kg4 {[%clk 0:00:31]}  Rxa6 {[%clk 0:00:08]} 66. Kg5 {[%clk 0:00:31]}  Kc5 {[%clk 0:00:08]} 67. f6 {[%clk 0:00:32]}  Kd6 {[%clk 0:00:08]} 68. Kh6 {[%clk 0:00:32]}  Ke5 {[%clk 0:00:08]} 69. h5 {[%clk 0:00:29]}  Rxf6+ {[%clk 0:00:09]} 70. Kxh7 {[%clk 0:00:28]}  Kf5 {[%clk 0:00:09]} 71. Kg7 {[%clk 0:00:27]}  Kg5 {[%clk 0:00:09]} 72. h6 {[%clk 0:00:27]}  Rxh6 {[%clk 0:00:09]} 73. Kf7 {[%clk 0:00:27]}  Rh3 {[%clk 0:00:10]} 74. Ke6 {[%clk 0:00:28]}  Rxf3 {[%clk 0:00:11]} 75. Ke5 {[%clk 0:00:29]}  Re3+ {[%clk 0:00:11]} 0-1


[Site "https://www.chess.com"]

[Event "Titled Tuesday Blitz July 26 Early 2022"]
[White "Bettalli, Francesco"]
[Black "Martinez Alcantara, Jose Eduardo"]
[WhiteFideId "2816453"]
[BlackFideId "3805662"]
[WhiteElo "2216"]
[BlackElo "2703"]
[Result "0-1"]
[Round "01"]
[TimeControl "180+1"]
[Date "2022.07.26"]
[WhiteClock "0:00:02"]
[BlackClock "0:00:06"]

1. d3 {[%clk 0:02:59]}  c5 {[%clk 0:02:57]} 2. Nf3 {[%clk 0:02:59]}  Nc6 {[%clk 0:02:57]} 3. e4 {[%clk 0:02:59]}  g6 {[%clk 0:02:57]} 4. g3 {[%clk 0:02:59]}  Bg7 {[%clk 0:02:57]} 5. Bg2 {[%clk 0:03:00]}  d6 {[%clk 0:02:57]} 6. O-O {[%clk 0:03:01]}  e5 {[%clk 0:02:56]} 7. Nbd2 {[%clk 0:02:58]}  Nge7 {[%clk 0:02:57]} 8. Re1 {[%clk 0:02:58]}  O-O {[%clk 0:02:57]} 9. Nf1 {[%clk 0:02:58]}  h6 {[%clk 0:02:56]} 10. h4 {[%clk 0:02:58]}  Be6 {[%clk 0:02:54]} 11. c3 {[%clk 0:02:54]}  Qd7 {[%clk 0:02:50]} 12. Ne3 {[%clk 0:02:52]}  f5 {[%clk 0:02:39]} 13. Nh2 {[%clk 0:02:48]}  Rf7 {[%clk 0:02:30]} 14. Nd5 {[%clk 0:02:41]}  Raf8 {[%clk 0:02:29]} 15. Rf1 {[%clk 0:02:36]}  f4 {[%clk 0:02:18]} 16. Bd2 {[%clk 0:02:07]}  Bh3 {[%clk 0:02:04]} 17. Bxh3 {[%clk 0:02:02]}  Qxh3 {[%clk 0:02:04]} 18. Qg4 {[%clk 0:02:01]}  Qxg4 {[%clk 0:01:59]} 19. Nxg4 {[%clk 0:02:02]}  Nxd5 {[%clk 0:01:57]} 20. exd5 {[%clk 0:02:03]}  Ne7 {[%clk 0:01:57]} 21. c4 {[%clk 0:02:02]}  Nf5 {[%clk 0:01:54]} 22. Kg2 {[%clk 0:02:00]}  b5 {[%clk 0:01:41]} 23. Rae1 {[%clk 0:01:52]}  Rb7 {[%clk 0:01:16]} 24. b3 {[%clk 0:01:47]}  a5 {[%clk 0:01:16]} 25. Kh3 {[%clk 0:01:27]}  a4 {[%clk 0:00:54]} 26. gxf4 {[%clk 0:01:21]}  axb3 {[%clk 0:00:54]} 27. axb3 {[%clk 0:01:20]}  bxc4 {[%clk 0:00:55]} 28. bxc4 {[%clk 0:01:17]}  Rb3 {[%clk 0:00:55]} 29. fxe5 {[%clk 0:01:15]}  Rxd3+ {[%clk 0:00:55]} 30. Be3 {[%clk 0:01:15]}  h5 {[%clk 0:00:51]} 31. Nf6+ {[%clk 0:01:13]}  Bxf6 {[%clk 0:00:50]} 32. exf6 {[%clk 0:01:14]}  Rxf6 {[%clk 0:00:51]} 33. Kg2 {[%clk 0:01:08]}  Nxh4+ {[%clk 0:00:50]} 34. Kh1 {[%clk 0:01:09]}  Nf3 {[%clk 0:00:35]} 35. Ra1 {[%clk 0:01:04]}  g5 {[%clk 0:00:35]} 36. Ra7 {[%clk 0:01:00]}  Rb3 {[%clk 0:00:31]} 37. Rfa1 {[%clk 0:00:57]}  Rb8 {[%clk 0:00:29]} 38. Re7 {[%clk 0:00:51]}  g4 {[%clk 0:00:18]} 39. Kg2 {[%clk 0:00:28]}  Nh4+ {[%clk 0:00:18]} 40. Kg1 {[%clk 0:00:25]}  Nf5 {[%clk 0:00:19]} 41. Rd7 {[%clk 0:00:24]}  Nxe3 {[%clk 0:00:17]} 42. fxe3 {[%clk 0:00:24]}  Rbf8 {[%clk 0:00:13]} 43. Raa7 {[%clk 0:00:22]}  R8f7 {[%clk 0:00:12]} 44. Rd8+ {[%clk 0:00:12]}  Kg7 {[%clk 0:00:13]} 45. Raa8 {[%clk 0:00:11]}  Kg6 {[%clk 0:00:10]} 46. e4 {[%clk 0:00:11]}  Kg5 {[%clk 0:00:09]} 47. e5 {[%clk 0:00:08]}  dxe5 {[%clk 0:00:08]} 48. d6 {[%clk 0:00:09]}  Kh4 {[%clk 0:00:08]} 49. Ra2 {[%clk 0:00:07]}  Rf1+ {[%clk 0:00:08]} 50. Kg2 {[%clk 0:00:07]}  Rd1 {[%clk 0:00:08]} 51. Re2 {[%clk 0:00:04]}  Rd3 {[%clk 0:00:05]} 52. Rxe5 {[%clk 0:00:03]}  Rg3+ {[%clk 0:00:05]} 53. Kh2 {[%clk 0:00:03]}  Rf2+ {[%clk 0:00:06]} 54. Kh1 {[%clk 0:00:04]}  Rf1+ {[%clk 0:00:06]} 55. Kh2 {[%clk 0:00:04]}  Rf2+ {[%clk 0:00:06]} 56. Kh1 {[%clk 0:00:04]}  Rd3 {[%clk 0:00:07]} 57. Re1 {[%clk 0:00:04]}  Kh3 {[%clk 0:00:07]} 58. d7 {[%clk 0:00:01]}  g3 {[%clk 0:00:08]} 59. Kg1 {[%clk 0:00:02]}  Rdd2 {[%clk 0:00:06]} 0-1


[Site "https://www.chess.com"]

[Event "Titled Tuesday Blitz July 26 Early 2022"]
[White "Djokic, Mihailo"]
[Black "Leve, Nitai"]
[WhiteFideId "976440"]
[BlackFideId "2006898"]
[WhiteElo "2246"]
[BlackElo "2144"]
[Result "1-0"]
[Round "01"]
[TimeControl "180+1"]
[Date "2022.07.27"]
[WhiteClock "0:00:05"]
[BlackClock "0:00:07"]

1. e4 {[%clk 0:03:00]}  e6 {[%clk 0:02:57]} 2. d4 {[%clk 0:03:00]}  d5 {[%clk 0:02:57]} 3. Nc3 {[%clk 0:03:00]}  dxe4 {[%clk 0:02:50]} 4. Nxe4 {[%clk 0:02:58]}  Nf6 {[%clk 0:02:51]} 5. Nxf6+ {[%clk 0:02:52]}  Qxf6 {[%clk 0:02:50]} 6. Nf3 {[%clk 0:02:51]}  h6 {[%clk 0:02:50]} 7. c3 {[%clk 0:02:50]}  Bd6 {[%clk 0:02:50]} 8. Bd3 {[%clk 0:02:49]}  b6 {[%clk 0:02:47]} 9. Qe2 {[%clk 0:02:48]}  Bb7 {[%clk 0:02:47]} 10. Be4 {[%clk 0:02:46]}  Bxe4 {[%clk 0:02:30]} 11. Qxe4 {[%clk 0:02:45]}  c6 {[%clk 0:02:30]} 12. Be3 {[%clk 0:02:23]}  O-O {[%clk 0:02:29]} 13. O-O {[%clk 0:02:08]}  Rc8 {[%clk 0:02:28]} 14. c4 {[%clk 0:02:05]}  Nd7 {[%clk 0:02:27]} 15. Rac1 {[%clk 0:02:04]}  c5 {[%clk 0:02:24]} 16. Rfd1 {[%clk 0:01:56]}  cxd4 {[%clk 0:02:15]} 17. Bxd4 {[%clk 0:01:55]}  Qe7 {[%clk 0:02:15]} 18. Bxg7 {[%clk 0:01:25]}  Kxg7 {[%clk 0:02:07]} 19. Qd4+ {[%clk 0:01:24]}  Qf6 {[%clk 0:01:59]} 20. Qxd6 {[%clk 0:01:20]}  Nc5 {[%clk 0:01:45]} 21. Qe5 {[%clk 0:01:03]}  Rd8 {[%clk 0:01:39]} 22. b3 {[%clk 0:00:56]}  Nd3 {[%clk 0:01:32]} 23. Qxf6+ {[%clk 0:00:56]}  Kxf6 {[%clk 0:01:32]} 24. Ra1 {[%clk 0:00:46]}  Nf4 {[%clk 0:01:30]} 25. Kf1 {[%clk 0:00:45]}  a5 {[%clk 0:01:25]} 26. g3 {[%clk 0:00:43]}  Ng6 {[%clk 0:01:24]} 27. a3 {[%clk 0:00:37]}  Kf5 {[%clk 0:01:23]} 28. Ke2 {[%clk 0:00:36]}  f6 {[%clk 0:01:22]} 29. Nd4+ {[%clk 0:00:35]}  Kg4 {[%clk 0:01:16]} 30. Kf1 {[%clk 0:00:27]}  e5 {[%clk 0:01:09]} 31. Ne6 {[%clk 0:00:22]}  Rxd1+ {[%clk 0:00:41]} 32. Rxd1 {[%clk 0:00:22]}  Kh3 {[%clk 0:00:42]} 33. Kg1 {[%clk 0:00:19]}  Rc8 {[%clk 0:00:32]} 34. f3 {[%clk 0:00:11]}  a4 {[%clk 0:00:26]} 35. bxa4 {[%clk 0:00:05]}  Rxc4 {[%clk 0:00:26]} 36. Ng7 {[%clk 0:00:05]}  Rxa4 {[%clk 0:00:15]} 37. Rd3 {[%clk 0:00:04]}  e4 {[%clk 0:00:13]} 38. fxe4 {[%clk 0:00:04]}  Rxe4 {[%clk 0:00:11]} 39. Nh5 {[%clk 0:00:04]}  Ne5 {[%clk 0:00:06]} 40. Rb3 {[%clk 0:00:03]}  Re2 {[%clk 0:00:05]} 41. Nf4+ {[%clk 0:00:03]}  Kg4 {[%clk 0:00:06]} 42. Nxe2 {[%clk 0:00:04]}  Nf3+ {[%clk 0:00:05]} 43. Kf2 {[%clk 0:00:04]}  Nd2 {[%clk 0:00:06]} 44. Rb4+ {[%clk 0:00:04]}  Kg5 {[%clk 0:00:06]} 45. h4+ {[%clk 0:00:04]}  Kf5 {[%clk 0:00:06]} 46. Nd4+ {[%clk 0:00:04]}  Ke4 {[%clk 0:00:06]} 47. Nf3+ {[%clk 0:00:04]}  Kd3 {[%clk 0:00:07]} 48. Nxd2 {[%clk 0:00:04]}  Kxd2 {[%clk 0:00:07]} 49. Rxb6 {[%clk 0:00:05]} 1-0


[Site "https://www.chess.com"]

[Event "Titled Tuesday Blitz July 26 Early 2022"]
[White "Dubov, Daniil"]
[Black "Kozlov, Oleg"]
[WhiteFideId "24126055"]
[BlackFideId "4104544"]
[WhiteElo "2791"]
[BlackElo "2132"]
[Result "1-0"]
[Round "01"]
[TimeControl "180+1"]
[Date "2022.07.26"]
[WhiteClock "0:01:14"]
[BlackClock "0:00:18"]

1. Nf3 {[%clk 0:03:00]}  f5 {[%clk 0:02:56]} 2. g3 {[%clk 0:03:00]}  Nf6 {[%clk 0:02:55]} 3. Bg2 {[%clk 0:03:01]}  g6 {[%clk 0:02:56]} 4. O-O {[%clk 0:03:02]}  Bg7 {[%clk 0:02:56]} 5. b3 {[%clk 0:03:01]}  Ne4 {[%clk 0:02:52]} 6. d4 {[%clk 0:03:00]}  O-O {[%clk 0:02:53]} 7. Bb2 {[%clk 0:03:00]}  d6 {[%clk 0:02:53]} 8. Nbd2 {[%clk 0:02:59]}  Nc6 {[%clk 0:02:53]} 9. e3 {[%clk 0:02:58]}  Nxd2 {[%clk 0:02:49]} 10. Nxd2 {[%clk 0:02:56]}  e5 {[%clk 0:02:45]} 11. dxe5 {[%clk 0:02:55]}  dxe5 {[%clk 0:02:44]} 12. Nc4 {[%clk 0:02:55]}  e4 {[%clk 0:02:42]} 13. Bxg7 {[%clk 0:02:54]}  Kxg7 {[%clk 0:02:42]} 14. f3 {[%clk 0:02:49]}  exf3 {[%clk 0:02:36]} 15. Bxf3 {[%clk 0:02:49]}  Be6 {[%clk 0:02:35]} 16. Bxc6 {[%clk 0:02:41]}  bxc6 {[%clk 0:02:32]} 17. Qxd8 {[%clk 0:02:40]}  Raxd8 {[%clk 0:02:31]} 18. Ne5 {[%clk 0:02:41]}  Bd5 {[%clk 0:02:29]} 19. Rfe1 {[%clk 0:02:32]}  Rfe8 {[%clk 0:02:27]} 20. Nd3 {[%clk 0:02:32]}  Re7 {[%clk 0:02:14]} 21. Rad1 {[%clk 0:02:30]}  Rde8 {[%clk 0:02:03]} 22. Kf2 {[%clk 0:02:30]}  Be4 {[%clk 0:01:59]} 23. Rd2 {[%clk 0:02:26]}  Kf6 {[%clk 0:01:49]} 24. Nc5 {[%clk 0:02:21]}  Bd5 {[%clk 0:01:45]} 25. c4 {[%clk 0:02:20]}  Be4 {[%clk 0:01:43]} 26. Red1 {[%clk 0:02:16]}  g5 {[%clk 0:01:29]} 27. Rd8 {[%clk 0:02:14]}  g4 {[%clk 0:01:27]} 28. Rxe8 {[%clk 0:02:00]}  Rxe8 {[%clk 0:01:28]} 29. Rd7 {[%clk 0:02:00]}  Re7 {[%clk 0:01:20]} 30. Rd8 {[%clk 0:01:49]}  Bf3 {[%clk 0:01:11]} 31. Ra8 {[%clk 0:01:44]}  h5 {[%clk 0:00:58]} 32. h4 {[%clk 0:01:40]}  Ke5 {[%clk 0:00:50]} 33. Rd8 {[%clk 0:01:28]}  Be4 {[%clk 0:00:35]} 34. a4 {[%clk 0:01:26]}  Bf3 {[%clk 0:00:35]} 35. a5 {[%clk 0:01:25]}  Be4 {[%clk 0:00:34]} 36. a6 {[%clk 0:01:25]}  Bc2 {[%clk 0:00:34]} 37. b4 {[%clk 0:01:21]}  Bb1 {[%clk 0:00:20]} 38. Ra8 {[%clk 0:01:17]}  Ba2 {[%clk 0:00:18]} 39. Rxa7 {[%clk 0:01:17]}  Bxc4 {[%clk 0:00:19]} 40. Ra8 {[%clk 0:01:18]}  Kf6 {[%clk 0:00:18]} 41. a7 {[%clk 0:01:14]} 1-0


[Site "https://www.chess.com"]

[Event "Titled Tuesday Blitz July 26 Early 2022"]
[White "Dushyant Sharma"]
[Black "Bortnyk, Olexandr"]
[WhiteFideId "25065130"]
[BlackFideId "14120828"]
[WhiteElo "2105"]
[BlackElo "2723"]
[Result "0-1"]
[Round "01"]
[TimeControl "180+1"]
[Date "2022.07.26"]
[WhiteClock "0:00:01"]
[BlackClock "0:00:59"]

1. e4 {[%clk 0:03:00]}  Nf6 {[%clk 0:02:59]} 2. Nc3 {[%clk 0:03:00]}  d6 {[%clk 0:02:59]} 3. d4 {[%clk 0:03:00]}  Nbd7 {[%clk 0:02:59]} 4. Be3 {[%clk 0:03:00]}  e5 {[%clk 0:02:57]} 5. f3 {[%clk 0:02:59]}  a6 {[%clk 0:02:53]} 6. Qd2 {[%clk 0:02:59]}  Be7 {[%clk 0:02:50]} 7. O-O-O {[%clk 0:02:59]}  b5 {[%clk 0:02:45]} 8. h4 {[%clk 0:02:58]}  Bb7 {[%clk 0:02:44]} 9. h5 {[%clk 0:02:58]}  b4 {[%clk 0:02:37]} 10. Nb1 {[%clk 0:02:43]}  exd4 {[%clk 0:02:33]} 11. Bxd4 {[%clk 0:02:35]}  c5 {[%clk 0:02:34]} 12. Be3 {[%clk 0:02:35]}  d5 {[%clk 0:02:29]} 13. exd5 {[%clk 0:01:29]}  Nxd5 {[%clk 0:02:09]} 14. Bc4 {[%clk 0:01:24]}  N7b6 {[%clk 0:02:06]} 15. Bxd5 {[%clk 0:01:22]}  Nxd5 {[%clk 0:02:04]} 16. Nh3 {[%clk 0:01:16]}  O-O {[%clk 0:02:01]} 17. h6 {[%clk 0:01:08]}  g6 {[%clk 0:01:58]} 18. Bg5 {[%clk 0:00:58]}  f6 {[%clk 0:01:55]} 19. Bh4 {[%clk 0:00:53]}  Qa5 {[%clk 0:01:53]} 20. Qe2 {[%clk 0:00:50]}  Qxa2 {[%clk 0:01:50]} 21. Qe6+ {[%clk 0:00:25]}  Rf7 {[%clk 0:01:49]} 22. Nf4 {[%clk 0:00:25]}  Rd8 {[%clk 0:01:41]} 23. Nxg6 {[%clk 0:00:19]}  hxg6 {[%clk 0:01:38]} 24. h7+ {[%clk 0:00:20]}  Kg7 {[%clk 0:01:39]} 25. Bxf6+ {[%clk 0:00:05]}  Rxf6 {[%clk 0:01:32]} 26. h8=Q+ {[%clk 0:00:03]}  Rxh8 {[%clk 0:01:32]} 27. Qe5 {[%clk 0:00:03]}  Rxh1 {[%clk 0:01:09]} 28. Rxh1 {[%clk 0:00:04]}  Qa5 {[%clk 0:01:09]} 29. Rd1 {[%clk 0:00:03]}  Qd8 {[%clk 0:01:06]} 30. c4 {[%clk 0:00:02]}  Bd6 {[%clk 0:00:58]} 31. Qg5 {[%clk 0:00:02]}  Bf4+ {[%clk 0:00:58]} 32. Qxf4 {[%clk 0:00:01]}  Rxf4 {[%clk 0:00:59]} 0-1


[Site "https://www.chess.com"]